bitfinex-derivatives/quotes_SOLF0:USTF0_20241218
["timestamp","ask_amount","ask_price","bid_price","bid_amount"]
[1734555814076,37.37991524,206.42,206.25,5.76410661]
[1734555814270,37.37991524,206.38,206.25,5.76410661]
[1734555815072,39.80511524,206.38,206.27,2.4264]
[1734555815275,37.37991524,206.42,206.25,5.76410661]
[1734555816174,2.425,206.39,206.29,2.4261]
[1734555816769,2.425,206.39,206.3,2.426]
[1734555816969,55.42,206.68,206.36,37.37991524]
[1734555817168,37.37991524,206.52,206.37,9.0731]
[1734555817371,37.37991524,206.52,206.25,5.76410661]
[1734555817372,37.37991524,206.44,206.26,37.37991524]
[1734555817568,37.37991524,206.48,206.27,3.0209]
[1734555817775,0.17599,206.49,206.3,37.37991524]
[1734555819173,0.17599,206.49,206.34,37.37991524]
[1734555819675,0.17599,206.49,206.47,2.424]
[1734555820672,37.37991524,206.64,206.46,37.37991524]
[1734555820868,43.10534807,206.64,206.46,37.37991524]
[1734555821371,5.05666957,206.81,206.47,5.92625372]
[1734555821577,37.37991524,206.68,206.47,5.92625372]
[1734555822183,0.85366073,206.67,206.53,37.37991524]
[1734555822485,5.93011453,206.72,206.54,3.0634]
[1734555822686,37.37991524,206.7,206.54,3.0634]
[1734555823378,37.37991524,206.66,206.47,5.92625372]
[1734555823578,2.4225,206.6,206.48,3.0634]
[1734555823785,37.37991524,206.62,206.48,3.0634]
[1734555824084,2.4227,206.58,206.48,5.4872]
[1734555824381,37.37991524,206.54,206.43,6.0607]
[1734555824587,37.37991524,206.54,206.38,3.0634]
[1734555824988,5.92371805,206.61,206.41,37.37991524]
[1734555825186,5.92371805,206.61,206.38,3.0634]
[1734555825187,5.92371805,206.61,206.45,37.37991524]
[1734555825381,5.92371805,206.61,206.46,3.2476]
[1734555825687,5.92371805,206.61,206.49,2.4237]
[1734555825888,5.92371805,206.61,206.46,3.2476]
[1734555826589,37.37991524,206.58,206.46,3.2476]
[1734555826796,37.37991524,206.58,206.39,3.1144]
[1734555826985,37.37991524,206.58,206.39,6.362]
[1734555827185,2.4232,206.55,206.48,2.4239]
[1734555827488,37.37991524,206.58,206.39,6.362]
[1734555827489,37.37991524,206.58,206.41,37.37991524]
[1734555827684,37.37991524,206.58,206.39,6.362]
[1734555828691,2.4233,206.53,206.39,6.362]
[1734555828983,5.92371805,206.61,206.41,37.37991524]
[1734555829390,37.37991524,206.58,206.39,6.362]
[1734555829984,0.85113408,206.57,206.39,6.362]
[1734555830190,2.4239,206.48,206.39,6.362]
[1734555830687,2.424,206.47,206.41,2.4247]
[1734555830887,37.37991524,206.54,206.39,3.1144]
[1734555831091,0.85094623,206.53,206.39,3.1144]
[1734555831292,2.4237,206.5,206.4,2.4248]
[1734555831593,37.37991524,206.54,206.39,3.1144]
[1734555831794,0.85090935,206.53,206.33,37.37991524]
[1734555831993,0.85090935,206.53,206.38,2.425]
[1734555832792,0.85090935,206.53,206.27,6.0624]
[1734555832793,2.4238,206.49,206.43,2.4244]
[1734555832993,37.37991524,206.54,206.37,37.37991524]
[1734555833395,5.74730658,206.5,206.41,2.4246]
[1734555833896,43.12722182,206.5,206.33,37.37991524]
[1734555835093,5.74730658,206.5,206.33,37.37991524]
[1734555835298,37.37991524,206.58,206.41,37.37991524]
[1734555835494,5.92371805,206.61,206.42,9.2994]
[1734555835693,37.37991524,206.47,206.26,19.60001144]
[1734555835891,37.37991524,206.47,206.31,6.3862]
[1734555836191,37.37991524,206.53,206.32,37.37991524]
[1734555836388,37.37991524,206.53,206.36,43.28870628]
[1734555836898,2.4233,206.54,206.46,2.424]
[1734555837096,35.16344502,206.56,206.38,2.9642]
[1734555837494,35.16344502,206.47,206.38,2.9642]
[1734555837698,35.16344502,206.47,206.37,24.04918321]
[1734555837899,35.16344502,206.41,206.37,24.04918321]
[1734555838093,2.4247,206.42,206.37,24.04918321]
[1734555838289,35.16344502,206.47,206.33,136.55720276]
[1734555838490,35.16344502,206.47,206.37,2.4251]
[1734555838491,2.4242,206.45,206.37,2.4251]
[1734555838689,35.16344502,206.47,206.33,5.7579647]
[1734555839099,2.4243,206.45,206.37,2.4251]
[1734555839294,35.16344502,206.51,206.33,5.7579647]
[1734555839692,35.16344502,206.51,206.44,2.4242]
[1734555839998,41.00873982,206.51,206.35,19.60001144]
[1734555840191,35.16344502,206.51,206.45,2.4242]
[1734555840394,55.42,206.61,206.33,5.7579647]
[1734555840395,35.16344502,206.59,206.39,35.16344502]
[1734555840595,5.92039869,206.55,206.4,2.9948]
[1734555840897,41.08384371,206.55,206.4,2.9948]
[1734555841104,41.08384371,206.55,206.42,20.06290269]
[1734555841301,2.4232,206.54,206.42,20.06290269]
[1734555841494,35.16344502,206.47,206.42,20.06290269]
[1734555841701,2.4245,206.42,206.41,50.0250836]
[1734555841896,35.16344502,206.43,206.42,4.46612581]
[1734555842090,35.16344502,206.43,206.39,80.25161077]
[1734555842497,35.16344502,206.47,206.39,80.25161077]
[1734555842898,35.16344502,206.47,206.31,3.2063]
[1734555843202,35.16344502,206.43,206.31,3.2063]
[1734555843599,35.16344502,206.47,206.31,3.2063]
[1734555843795,2.425,206.38,206.32,2.4256]
[1734555843995,35.16344502,206.42,206.31,3.2063]
[1734555844599,2.425,206.38,206.32,2.4257]
[1734555844797,35.16344502,206.42,206.31,3.2063]
[1734555844999,35.16344502,206.42,206.24,35.16344502]
[1734555845195,35.16344502,206.38,206.2,35.16344502]
[1734555845603,35.16344502,206.42,206.18,2.9324]
[1734555845909,35.16344502,206.3,206.18,2.9324]
[1734555846100,35.16344502,206.3,206.15,2.9458]
[1734555846496,35.16344502,206.3,206.16,5.67707063]
[1734555846701,2.4268,206.23,206.16,5.67707063]
[1734555847205,2.4269,206.22,206.16,2.4275]
[1734555847399,2.4269,206.22,206.13,2.9678]
[1734555847603,35.16344502,206.26,206.13,2.9678]
[1734555847805,35.16344502,206.26,206.08,35.16344502]
[1734555848006,35.16344502,206.26,206.12,2.428]
[1734555848302,35.16344502,206.26,206.08,35.16344502]
[1734555848505,2.4274,206.18,206.04,35.16344502]
[1734555848698,35.16344502,206.22,206.09,5.72311851]
[1734555849100,5.84838274,206.27,206.09,5.72311851]
[1734555849101,35.16344502,206.26,206.09,5.72311851]
[1734555849906,35.16344502,206.21,206.13,2.4279]
[1734555850107,35.16344502,206.25,206.09,5.72311851]
[1734555850408,2.4267,206.25,206.14,2.4279]
[1734555850607,5.84838274,206.27,206.15,9.3111]
[1734555851007,35.16344502,206.33,206.15,9.3111]
[1734555851204,35.16344502,206.37,206.18,35.16344502]
[1734555852607,35.16344502,206.33,206.15,9.3111]
[1734555852808,35.16344502,206.37,206.18,35.16344502]
[1734555853007,35.16344502,206.41,206.26,35.16344502]
[1734555853209,187.79398677,206.53,206.3,35.16344502]
[1734555853210,35.16344502,206.45,206.3,35.16344502]
[1734555853404,5.77065933,206.46,206.31,3.1912]
[1734555853605,222.95743179,206.53,206.34,35.16344502]
[1734555853908,35.16344502,206.49,206.34,35.16344502]
[1734555854103,35.16344502,206.49,206.31,3.1912]
[1734555854302,2.4242,206.45,206.37,2.425]
[1734555854512,2.4242,206.45,206.31,3.1912]
[1734555854714,35.16344502,206.49,206.31,3.1912]
[1734555854913,2.4246,206.41,206.33,2.4255]
[1734555855113,35.16344502,206.41,206.31,3.1912]
[1734555855508,35.16344502,206.45,206.35,2.4252]
[1734555855708,35.16344502,206.45,206.31,3.1912]
[1734555856411,35.16344502,206.5,206.34,35.16344502]
[1734555857114,35.16344502,206.5,206.31,3.1912]
[1734555857815,35.16344502,206.43,206.31,3.1912]
[1734555858017,35.16344502,206.47,206.31,3.1912]
[1734555858318,2.424,206.46,206.37,2.425]
[1734555858515,2.424,206.46,206.31,3.1912]
[1734555858810,5.8980204,206.51,206.31,3.1912]
[1734555859116,5.74090517,206.53,206.38,35.16344502]
[1734555859318,5.74090517,206.53,206.39,6.1943]
[1734555860214,35.16344502,206.51,206.39,3.1229]
[1734555860714,2.4235,206.5,206.39,3.1229]
[1734555861017,35.16344502,206.51,206.39,3.1229]
[1734555861713,2.4241,206.45,206.39,3.1229]
[1734555861915,35.16344502,206.51,206.39,3.1229]
[1734555862316,35.16344502,206.55,206.39,3.1229]
[1734555862511,35.16344502,206.59,206.42,35.16344502]
[1734555862717,35.16344502,206.59,206.43,5.9738]
[1734555863220,35.16344502,206.63,206.55,2.4228]
[1734555863412,35.16344502,206.67,206.46,35.16344502]
[1734555863617,35.16344502,206.67,206.5,35.16344502]
[1734555863819,132.33398677,206.7,206.54,35.16344502]
[1734555864011,132.33398677,206.7,206.51,2.9332]
[1734555864012,35.16344502,206.67,206.55,5.8855]
[1734555864215,35.16344502,206.63,206.51,8.67316475]
[1734555864411,35.16344502,206.59,206.4,2.9327]
[1734555864612,35.16344502,206.52,206.43,5.76322466]
[1734555864814,35.16344502,206.56,206.43,5.76322466]
[1734555865116,35.16344502,206.6,206.43,40.92666968]
[1734555865314,35.16344502,206.6,206.44,6.1722]
[1734555866318,35.16344502,206.56,206.44,6.1722]
[1734555867323,37.58624502,206.56,206.49,2.4236]
[1734555867521,35.16344502,206.6,206.44,6.1722]
[1734555868225,35.16344502,206.52,206.44,3.2395]
[1734555868524,5.84134663,206.61,206.3,3.0181]
[1734555868525,35.16344502,206.48,206.3,3.0181]
[1734555868722,35.16344502,206.44,206.3,3.0181]
[1734555868916,35.16344502,206.44,206.32,2.4255]
[1734555869318,35.16344502,206.44,206.3,3.0181]
[1734555869521,2.425,206.38,206.3,5.4439]
[1734555869725,35.16344502,206.44,206.3,3.0181]
[1734555870223,35.16344502,206.44,206.27,3.0488]
[1734555870425,5.88052399,206.42,206.29,5.80367723]
[1734555870618,2.4247,206.4,206.32,2.4255]
[1734555870819,5.88052399,206.42,206.29,5.80367723]
[1734555871328,132.33398677,206.57,206.33,35.16344502]
[1734555871524,35.16344502,206.54,206.34,2.9833]
[1734555871723,132.33398677,206.57,206.37,35.16344502]
[1734555871928,0.8510227,206.56,206.45,35.16344502]
[1734555872226,35.16344502,206.63,206.46,5.9228]
[1734555872428,5.90031786,206.61,206.46,5.9228]
[1734555872723,35.16344502,206.5,206.15,69.53106882]
[1734555872927,35.16344502,206.45,206.3,2.9395]
[1734555873434,35.16344502,206.49,206.3,38.10294502]
[1734555874125,35.32814502,206.53,206.34,35.16344502]
[1734555874831,35.16344502,206.58,206.38,35.16344502]
[1734555875025,35.16344502,206.62,206.46,35.16344502]
[1734555875229,132.33398677,206.63,206.46,35.16344502]
[1734555875422,2.4228,206.56,206.48,2.4236]
[1734555875726,5.73765671,206.59,206.47,2.9335]
[1734555876021,35.16344502,206.58,206.42,35.16344502]
[1734555876223,35.16344502,206.58,206.42,5.88899999]
[1734555876429,2.4235,206.5,206.43,2.4243]
[1734555876627,5.73765671,206.59,206.42,41.05244501]
[1734555877029,2.4231,206.53,206.42,41.05244501]
[1734555877229,5.73765671,206.59,206.42,41.05244501]
[1734555877623,35.16344502,206.58,206.43,2.4242]
[1734555877825,35.16344502,206.58,206.42,5.88899999]
[1734555878230,2.4236,206.49,206.42,8.31339999]
[1734555878532,35.16344502,206.58,206.42,5.88899999]
[1734555878833,35.16344502,206.58,206.44,2.424]
[1734555879028,35.16344502,206.58,206.42,5.88899999]
[1734555879236,35.16344502,206.58,206.4,3.1516]
[1734555879433,35.16344502,206.54,206.41,2.4244]
[1734555879734,35.16344502,206.54,206.4,3.1516]
[1734555879931,35.16344502,206.54,206.37,35.16344502]
[1734555880129,35.16344502,206.54,206.38,2.4248]
[1734555880331,0.8509951,206.53,206.33,35.16344502]
[1734555880527,35.16344502,206.5,206.34,5.79444427]
[1734555880836,35.16344502,206.46,206.29,35.16344502]
[1734555881127,2.4244,206.42,206.32,8.28570426]
[1734555881334,35.16344502,206.46,206.26,9.3728]
[1734555881533,35.16344502,206.42,206.26,9.3728]
[1734555881730,35.16344502,206.42,206.26,15.04910907]
[1734555882330,5.88755576,206.44,206.29,35.16344502]
[1734555882532,55.42,206.49,206.33,35.16344502]
[1734555882729,35.16344502,206.42,206.26,15.04910907]
[1734555882934,35.16344502,206.42,206.26,9.3728]
[1734555883334,2.4249,206.38,206.32,2.4255]
[1734555883532,5.77756782,206.48,206.29,35.16344502]
[1734555883832,5.77756782,206.48,206.33,35.16344502]
[1734555884030,55.42,206.49,206.33,35.16344502]
[1734555884537,2.4244,206.42,206.33,35.16344502]
[1734555884729,61.38115274,206.49,206.33,35.16344502]
[1734555884934,5.96115274,206.49,206.33,35.16344502]
[1734555885533,35.16344502,206.5,206.33,35.16344502]
[1734555885728,41.10829614,206.5,206.33,35.16344502]
[1734555886631,35.16344502,206.46,206.32,2.4255]
[1734555886839,35.16344502,206.46,206.26,9.3728]
[1734555887034,35.16344502,206.46,206.3,35.16344502]
[1734555887834,2.4244,206.42,206.3,35.16344502]
[1734555888432,5.94485112,206.5,206.26,9.3728]
[1734555888433,2.4252,206.35,206.26,9.3728]
[1734555888638,35.16344502,206.41,206.26,9.3728]
[1734555889438,35.16344502,206.41,206.28,2.426]
[1734555889636,2.4253,206.35,206.26,9.3728]
[1734555889835,2.4253,206.35,206.25,5.73974127]
[1734555889836,5.8305085,206.39,206.2,35.16344502]
[1734555890135,35.16344502,206.37,206.2,35.16344502]
[1734555890437,5.8305085,206.39,206.24,35.16344502]
[1734555890838,55.42,206.44,206.28,35.16344502]
[1734555891036,167.49743179,206.49,206.29,3.1007]
[1734555891230,2.4243,206.43,206.32,35.16344502]
[1734555891435,35.16344502,206.49,206.33,6.3799]
[1734555891834,35.16344502,206.49,206.34,5.73167629]
[1734555892029,35.16344502,206.53,206.42,2.4242]
[1734555892229,35.16344502,206.53,206.34,5.73167629]
[1734555892430,35.16344502,206.53,206.36,35.16344502]
[1734555893037,2.4234,206.49,206.36,35.16344502]
[1734555893233,35.16344502,206.57,206.36,35.16344502]
[1734555893831,35.16344502,206.57,206.4,35.16344502]
[1734555894037,2.4235,206.48,206.41,3.0706]
[1734555894339,35.16344502,206.49,206.34,5.73167629]
[1734555894729,5.83521353,206.58,206.4,2.4244]
[1734555894928,35.16344502,206.52,206.34,5.73167629]
[1734555895438,35.16344502,206.52,206.35,35.16344502]
[1734555895634,2.4229,206.54,206.35,35.16344502]
[1734555895835,35.16344502,206.56,206.35,35.16344502]
[1734555896330,35.16344502,206.56,206.39,35.16344502]
[1734555896528,35.16344502,206.56,206.4,3.0786]
[1734555896733,35.16344502,206.6,206.43,35.16344502]
[1734555896933,35.16344502,206.6,206.44,3.2088]
[1734555897134,0.1546,206.64,206.44,3.2088]
[1734555897135,2.4218,206.63,206.47,35.16344502]
[1734555897334,35.16344502,206.68,206.47,35.16344502]
[1734555897638,5.93559005,206.67,206.47,35.16344502]
[1734555897829,35.16344502,206.64,206.52,5.78549868]
[1734555898230,2.4219,206.63,206.55,2.4227]
[1734555898839,2.4219,206.62,206.55,2.4227]
[1734555899035,5.93559005,206.67,206.52,5.78549868]
[1734555899437,5.93559005,206.67,206.53,3.0158]
[1734555900540,35.16344502,206.68,206.53,3.0158]
[1734555900940,40.83855375,206.68,206.53,3.0158]
[1734555901148,35.16344502,206.63,206.53,3.0158]
[1734555901743,35.16344502,206.71,206.53,3.0158]
[1734555901947,35.16344502,206.71,206.55,35.16344502]
[1734555902248,5.93734992,206.7,206.53,3.0158]
[1734555902643,35.16344502,206.74,206.55,35.16344502]
[1734555902841,35.16344502,206.78,206.59,35.16344502]
[1734555903041,35.16344502,206.78,206.6,3.1493]
[1734555903251,37.58344502,206.78,206.71,2.4208]
[1734555903649,35.16344502,206.82,206.6,3.1493]
[1734555903846,35.16344502,206.82,206.64,35.16344502]
[1734555904044,35.16344502,206.82,206.65,3.2367]
[1734555904441,35.16344502,206.78,206.65,3.2367]
[1734555904644,35.16344502,206.74,206.62,5.75433364]
[1734555904844,35.16344502,206.74,206.6,3.1493]
[1734555905044,35.16344502,206.7,206.6,3.1493]
[1734555905550,35.16344502,206.7,206.62,2.4219]
[1734555906050,0.1548,206.77,206.59,5.67413792]
[1734555906051,35.16344502,206.74,206.59,5.67413792]
[1734555906441,2.421,206.7,206.59,5.67413792]
[1734555906646,35.16344502,206.74,206.59,5.67413792]
[1734555906848,35.16344502,206.78,206.59,40.83758294]
[1734555907044,35.16344502,206.78,206.71,2.4208]
[1734555907352,5.79385037,206.83,206.63,35.16344502]
[1734555907353,35.16344502,206.82,206.63,35.16344502]
[1734555907546,2.4198,206.8,206.73,2.4206]
[1734555907743,35.16344502,206.82,206.63,35.16344502]
[1734555908053,35.16344502,206.74,206.59,5.67413792]
[1734555908546,35.16344502,206.7,206.57,3.2367]
[1734555908746,35.16344502,206.58,206.41,6.66421006]
[1734555909048,35.16344502,206.58,206.42,9.2844]
[1734555909250,2.4231,206.52,206.42,15.04570166]
[1734555909443,35.16344502,206.58,206.42,15.04570166]
[1734555909644,35.16344502,206.58,206.42,9.2844]
[1734555909851,35.16344502,206.54,206.37,5.94169534]
[1734555910054,35.16344502,206.5,206.35,35.16344502]
[1734555910349,35.16344502,206.54,206.36,5.90911579]
[1734555911349,37.58584502,206.58,206.39,35.16344502]
[1734555911554,35.16344502,206.58,206.4,3.1292]
[1734555911945,35.16344502,206.58,206.41,6.172]
[1734555912352,35.16344502,206.58,206.43,35.16344502]
[1734555912553,35.16344502,206.58,206.41,6.172]
[1734555913054,35.16344502,206.54,206.41,6.172]
[1734555913549,37.58634502,206.54,206.41,6.172]
[1734555913749,5.68978561,206.6,206.41,6.172]
[1734555913750,35.16344502,206.58,206.41,6.172]
[1734555914154,5.68978561,206.6,206.53,2.4229]
[1734555914354,35.16344502,206.66,206.47,35.16344502]
[1734555914554,35.16344502,206.7,206.51,35.16344502]
[1734555914753,2.4211,206.69,206.61,2.4219]
[1734555914956,35.16344502,206.7,206.52,3.1674]
[1734555914957,35.16344502,206.7,206.55,35.16344502]
[1734555915159,5.85126623,206.69,206.55,35.16344502]
[1734555915752,5.85126623,206.69,206.53,6.0834]
[1734555916049,2.4214,206.66,206.58,2.4223]
[1734555916253,35.16344502,206.7,206.53,6.0834]
[1734555916456,35.16344502,206.7,206.54,5.76298036]
[1734555916649,2.4215,206.65,206.56,2.4225]
[1734555916954,40.95781542,206.7,206.53,6.0834]
[1734555917157,2.4223,206.59,206.53,6.0834]
[1734555917355,35.16344502,206.66,206.53,6.0834]
[1734555917758,2.4221,206.6,206.53,6.0834]
[1734555918058,35.16344502,206.66,206.47,35.16344502]
[1734555918257,2.4225,206.57,206.5,2.4232]
[1734555918562,35.16344502,206.61,206.47,35.16344502]
[1734555918959,2.4223,206.58,206.47,35.16344502]
[1734555919259,35.16344502,206.65,206.47,35.16344502]
[1734555921154,2.4217,206.64,206.55,2.4226]
[1734555921360,35.16344502,206.65,206.47,35.16344502]
[1734555922161,35.16344502,206.61,206.46,5.66939151]
[1734555922654,35.16344502,206.65,206.47,35.16344502]
[1734555923057,35.16344502,206.69,206.51,35.16344502]
[1734555924356,35.16344502,206.69,206.52,3.2388]
[1734555924764,35.16344502,206.69,206.55,35.16344502]
[1734555925360,35.16344502,206.69,206.53,6.4539]
[1734555925558,5.7943704,206.7,206.53,6.4539]
[1734555925559,35.16344502,206.65,206.53,6.4539]
[1734555925766,35.16344502,206.65,206.47,35.16344502]
[1734555925962,5.7943704,206.7,206.44,5.72513249]
[1734555925963,35.16344502,206.61,206.44,5.72513249]
[1734555926363,0.158,206.64,206.47,35.16344502]
[1734555926665,55.38,206.67,206.51,35.16344502]
[1734555927063,35.16344502,206.69,206.52,6.4539]
[1734555927264,35.16344502,206.69,206.52,9.6293]
[1734555927462,37.58454502,206.69,206.52,9.6293]
[1734555927662,35.16344502,206.69,206.52,9.6293]
[1734555928057,5.7943704,206.7,206.64,2.4216]
[1734555928365,5.7943704,206.7,206.55,35.16344502]
[1734555928560,2.4211,206.69,206.62,2.4218]
[1734555928764,2.4211,206.69,206.55,35.16344502]
[1734555928965,5.7943704,206.7,206.55,35.16344502]
[1734555929267,5.7943704,206.7,206.52,9.6293]
[1734555929268,35.16344502,206.69,206.52,9.6293]
[1734555929465,35.16344502,206.65,206.47,35.16344502]
[1734555929764,35.16344502,206.61,206.44,5.72513249]
[1734555929968,35.16344502,206.57,206.43,6.1996]
[1734555930263,35.16344502,206.54,206.38,6.66421006]
[1734555930767,35.16344502,206.58,206.39,35.16344502]
[1734555931170,5.7746063,206.53,206.39,35.16344502]
[1734555931562,2.4233,206.51,206.42,2.4241]
[1734555931760,2.4233,206.51,206.39,35.16344502]
[1734555931761,35.16344502,206.58,206.39,35.16344502]
[1734555932168,5.84599824,206.57,206.43,35.16344502]
[1734555932764,90.54344502,206.62,206.43,35.16344502]
[1734555932765,35.16344502,206.58,206.43,35.16344502]
[1734555932961,35.16344502,206.58,206.39,35.16344502]
[1734555933967,5.69301341,206.59,206.39,35.16344502]
[1734555933968,35.16344502,206.54,206.39,35.16344502]
[1734555934472,35.16344502,206.54,206.37,8.95084175]
[1734555934664,35.16344502,206.54,206.39,35.16344502]
[1734555934861,35.16344502,206.58,206.39,35.16344502]
[1734555935063,35.16344502,206.58,206.51,2.4231]
[1734555935263,35.16344502,206.58,206.39,35.16344502]
[1734555936272,35.16344502,206.58,206.43,35.16344502]
[1734555936872,2.4225,206.57,206.5,2.4232]
[1734555937072,2.4225,206.57,206.43,35.16344502]
[1734555937273,35.16344502,206.58,206.39,35.16344502]
[1734555937970,2.4227,206.55,206.39,35.16344502]
[1734555938165,35.16344502,206.58,206.43,35.16344502]
[1734555938370,35.16344502,206.58,206.39,35.16344502]
[1734555938574,5.69301341,206.59,206.45,35.16344502]
[1734555938769,90.54344502,206.62,206.45,35.16344502]
[1734555939171,90.54344502,206.62,206.39,35.16344502]
[1734555939468,90.54344502,206.62,206.37,8.95084175]
[1734555939469,35.16344502,206.54,206.37,8.95084175]
[1734555939665,2.4235,206.48,206.42,2.4242]
[1734555939879,35.16344502,206.46,206.33,26.65684024]
[1734555940066,35.16344502,206.5,206.33,26.65684024]
[1734555940469,35.16344502,206.46,206.31,6.1699]
[1734555940867,35.16344502,206.46,206.24,6.66421006]
[1734555940868,35.16344502,206.38,206.24,6.66421006]
[1734555941171,35.16344502,206.34,206.24,6.66421006]
[1734555941378,2.4258,206.29,206.24,6.66421006]
[1734555941567,2.4258,206.29,206.19,26.65684024]
[1734555941769,35.16344502,206.34,206.19,26.65684024]
[1734555942366,35.16344502,206.3,206.19,26.65684024]
[1734555942671,0.1571,206.37,206.11,6.66421006]
[1734555942672,35.16344502,206.25,206.11,6.66421006]
[1734555943170,2.4266,206.22,206.14,2.4274]
[1734555943375,35.16344502,206.25,206.11,6.66421006]
[1734555943579,35.16344502,206.25,206.09,43.93358095]
[1734555943772,5.68888048,206.28,206.13,35.16344502]
[1734555944075,35.32054502,206.37,206.17,35.16344502]
[1734555944675,35.32054502,206.37,206.26,2.426]
[1734555945070,35.32054502,206.37,206.18,3.234]
[1734555945276,5.78035141,206.33,206.3,2.4255]
[1734555945476,35.16344502,206.37,206.21,35.16344502]
[1734555945776,35.16344502,206.41,206.22,2.9281]
[1734555946075,5.95851292,206.37,206.23,3.152]
[1734555946375,5.95851292,206.37,206.25,35.16344502]
[1734555946773,35.16344502,206.41,206.25,35.16344502]
[1734555947176,5.93056602,206.43,206.29,35.16344502]
[1734555947378,35.16344502,206.45,206.29,35.16344502]
[1734555947569,5.72795096,206.44,206.35,2.4249]
[1734555947879,5.72795096,206.44,206.29,35.16344502]
[1734555948072,5.72795096,206.44,206.25,35.16344502]
[1734555948785,5.72795096,206.44,206.37,2.4248]
[1734555948976,5.72795096,206.44,206.25,35.16344502]
[1734555949173,5.72795096,206.44,206.33,2.4252]
[1734555949378,35.16344502,206.41,206.24,5.6924351]
[1734555949679,35.16344502,206.37,206.23,3.152]
[1734555950381,35.16344502,206.37,206.3,2.4255]
[1734555950881,35.16344502,206.37,206.29,2.4257]
[1734555951081,35.16344502,206.37,206.23,8.95834711]
[1734555951580,2.425,206.35,206.23,3.152]
[1734555952081,35.16344502,206.37,206.26,2.426]
[1734555952383,35.16344502,206.33,206.17,35.16344502]
[1734555952577,37.58874502,206.33,206.23,2.4264]
[1734555952881,35.16344502,206.33,206.17,35.16344502]
[1734555953279,37.58874502,206.33,206.24,2.4262]
[1734555953784,37.58874502,206.33,206.13,35.16344502]
[1734555953979,35.16344502,206.33,206.13,35.16344502]
[1734555954482,35.16344502,206.33,206.17,5.72389232]
[1734555954677,2.4254,206.32,206.17,5.72389232]
[1734555954882,2.4254,206.32,206.24,2.4262]
[1734555955180,35.16344502,206.33,206.17,5.72389232]
[1734555955477,35.16344502,206.37,206.17,40.88733734]
[1734555955681,40.9751788,206.33,206.17,40.88733734]
[1734555955881,40.9751788,206.33,206.17,5.72389232]
[1734555956181,35.16344502,206.29,206.13,35.16344502]
[1734555956378,40.9751788,206.33,206.16,5.85483543]
[1734555956583,40.9751788,206.33,206.27,2.4259]
[1734555956779,40.9751788,206.33,206.16,5.85483543]
[1734555956983,5.81173378,206.33,206.17,35.16344502]
[1734555957579,5.81173378,206.33,206.28,2.4258]
[1734555957776,5.81173378,206.33,206.17,35.16344502]
[1734555957777,35.16344502,206.37,206.17,35.16344502]
[1734555958181,41.0576339,206.37,206.21,35.16344502]
[1734555958378,35.16344502,206.41,206.22,6.0468]
[1734555958786,5.85168411,206.38,206.22,6.0468]
[1734555958976,35.16344502,206.37,206.22,6.0468]
[1734555959181,37.58834502,206.37,206.29,2.4257]
[1734555959388,35.16344502,206.37,206.22,6.0468]
[1734555959782,35.16344502,206.33,206.22,6.0468]
[1734555960385,41.01512913,206.38,206.22,6.0468]
[1734555961280,35.16344502,206.34,206.19,2.4268]
[1734555961488,35.16344502,206.26,206.1,5.87380988]
[1734555961885,35.16344502,206.3,206.1,5.87380988]
[1734555962388,35.16344502,206.34,206.13,35.16344502]
[1734555962584,35.16344502,206.34,206.17,35.16344502]
[1734555962783,35.16344502,206.34,206.24,2.4262]
[1734555962784,2.4254,206.32,206.24,2.4262]
[1734555962980,35.16344502,206.3,206.13,35.16344502]
[1734555963182,35.16344502,206.26,206.09,35.16344502]
[1734555963382,35.16344502,206.26,206.05,35.16344502]
[1734555964486,2.4265,206.22,206.14,2.4274]
[1734555964692,35.16344502,206.26,206.14,2.4274]
[1734555965185,2.4267,206.2,206.13,2.4275]
[1734555965485,35.16344502,206.26,206.05,35.16344502]
[1734555965684,35.16344502,206.22,206.05,40.89644172]
[1734555966189,35.16344502,206.26,206.09,35.16344502]
[1734555966483,5.78893406,206.27,206.13,35.16344502]
[1734555966686,35.16344502,206.34,206.14,9.2658]
[1734555966883,5.95732882,206.29,206.14,9.2658]
[1734555967392,5.95732882,206.29,206.17,35.16344502]
[1734555967591,8.38302882,206.29,206.22,2.4265]
[1734555967887,5.95732882,206.29,206.14,9.2658]
[1734555968083,2.4258,206.28,206.2,2.4267]
[1734555968385,5.95732882,206.29,206.14,9.2658]
[1734555968588,35.16344502,206.26,206.09,35.16344502]
[1734555968883,5.95732882,206.29,206.06,6.2555]
[1734555969084,35.16344502,206.21,206.01,35.16344502]
[1734555969681,35.16344502,206.11,206.0,3.0896]